[Event "*** SCC Grand Prix: Titled Tuesday Blitz"]
[Site "Chess.com"]
[Date "2020.07.14"]
[Round "9"]
[White "warmoatmeal"]
[Black "bgfbfbgfbgfgf"]
[Result "0-1"]
[WhiteElo "2357"]
[BlackElo "2676"]
[TimeControl "180+1"]
[EndTime "11:48:36 PDT"]
[Termination "bgfbfbgfbgfgf won by checkmate"]

1. Nf3 {[%clk 0:03:00.6]} 1... Nf6 {[%clk 0:02:59.5]} 2. d4 {[%clk 0:02:57.9]}
2... g6 {[%clk 0:02:58.9]} 3. c4 {[%clk 0:02:58]} 3... Bg7 {[%clk 0:02:58]} 4.
Nc3 {[%clk 0:02:58.9]} 4... c5 {[%clk 0:02:57]} 5. d5 {[%clk 0:02:52]} 5... O-O
{[%clk 0:02:57]} 6. Bg5 {[%clk 0:02:51.3]} 6... d6 {[%clk 0:02:55.1]} 7. e3
{[%clk 0:02:50.9]} 7... h6 {[%clk 0:02:45.4]} 8. Bh4 {[%clk 0:02:48]} 8... Bg4
{[%clk 0:02:37.9]} 9. Be2 {[%clk 0:02:48.1]} 9... a6 {[%clk 0:02:36.3]} 10. h3
{[%clk 0:02:49]} 10... Bxf3 {[%clk 0:02:34.9]} 11. Bxf3 {[%clk 0:02:49.9]} 11...
Nbd7 {[%clk 0:02:35.3]} 12. O-O {[%clk 0:02:49]} 12... Ne8 {[%clk 0:02:35]} 13.
Rc1 {[%clk 0:02:46.5]} 13... b5 {[%clk 0:02:27.4]} 14. b3 {[%clk 0:02:38.4]}
14... b4 {[%clk 0:02:10.2]} 15. Ne2 {[%clk 0:02:18.6]} 15... a5 {[%clk
0:02:07.4]} 16. e4 {[%clk 0:02:13.1]} 16... a4 {[%clk 0:02:05.9]} 17. Bg3 {[%clk
0:02:10.3]} 17... axb3 {[%clk 0:01:58.2]} 18. axb3 {[%clk 0:02:11.2]} 18... Ne5
{[%clk 0:01:54.8]} 19. Kh2 {[%clk 0:02:04.6]} 19... Ra3 {[%clk 0:01:49.5]} 20.
Rb1 {[%clk 0:02:04.1]} 20... e6 {[%clk 0:01:15.3]} 21. Re1 {[%clk 0:01:46.5]}
21... Nc7 {[%clk 0:01:09.4]} 22. Nc1 {[%clk 0:01:43.2]} 22... exd5 {[%clk
0:01:08.5]} 23. exd5 {[%clk 0:01:40.7]} 23... Re8 {[%clk 0:01:08.8]} 24. Nd3
{[%clk 0:01:39.7]} 24... Nxf3+ {[%clk 0:00:49.2]} 25. Qxf3 {[%clk 0:01:40.6]}
25... Rxe1 {[%clk 0:00:49.6]} 26. Nxe1 {[%clk 0:01:41.5]} 26... Ne8 {[%clk
0:00:39.3]} 27. Nc2 {[%clk 0:01:31]} 27... Ra2 {[%clk 0:00:37.6]} 28. Qd3 {[%clk
0:01:21.6]} 28... Nf6 {[%clk 0:00:35.7]} 29. Re1 {[%clk 0:01:21.4]} 29... Nh5
{[%clk 0:00:35.5]} 30. Qe4 {[%clk 0:01:13.7]} 30... Nxg3 {[%clk 0:00:34.7]} 31.
Kxg3 {[%clk 0:01:08]} 31... Be5+ {[%clk 0:00:26.4]} 32. f4 {[%clk 0:00:59.9]}
32... Qg5+ {[%clk 0:00:25]} 33. Kf3 {[%clk 0:01:00.2]} 33... Qh5+ {[%clk
0:00:22.2]} 34. Kg3 {[%clk 0:01:00.6]} 34... Qg5+ {[%clk 0:00:11.8]} 35. Kf3
{[%clk 0:01:00.4]} 35... Bxf4 {[%clk 0:00:11.7]} 36. Qxf4 {[%clk 0:00:37.1]}
36... Rxc2 {[%clk 0:00:12.1]} 37. Re8+ {[%clk 0:00:35.1]} 37... Kg7 {[%clk
0:00:11.4]} 38. Qxg5 {[%clk 0:00:35.1]} 38... hxg5 {[%clk 0:00:12.3]} 39. Rd8
{[%clk 0:00:34.7]} 39... Rc3+ {[%clk 0:00:12.8]} 40. Kf2 {[%clk 0:00:31.6]}
40... Rxb3 {[%clk 0:00:12.7]} 41. Rxd6 {[%clk 0:00:28.3]} 41... Rc3 {[%clk
0:00:13.1]} 42. Rc6 {[%clk 0:00:27.6]} 42... Rxc4 {[%clk 0:00:13.6]} 43. d6
{[%clk 0:00:28.2]} 43... Kf6 {[%clk 0:00:14]} 44. Ke3 {[%clk 0:00:17.1]} 44...
Ke6 {[%clk 0:00:13.3]} 45. Rc7 {[%clk 0:00:16.3]} 45... Kxd6 {[%clk 0:00:11.8]}
46. Rxf7 {[%clk 0:00:14.1]} 46... Rc3+ {[%clk 0:00:11.6]} 47. Kd2 {[%clk
0:00:12]} 47... Rg3 {[%clk 0:00:11.5]} 48. Rf6+ {[%clk 0:00:12.5]} 48... Kd5
{[%clk 0:00:11.2]} 49. Rxg6 {[%clk 0:00:13.4]} 49... Rxg2+ {[%clk 0:00:11.4]}
50. Ke3 {[%clk 0:00:14]} 50... b3 {[%clk 0:00:10.8]} 51. Rb6 {[%clk 0:00:10.8]}
51... b2 {[%clk 0:00:10]} 52. Kf3 {[%clk 0:00:11.7]} 52... Rc2 {[%clk
0:00:09.6]} 53. Kg4 {[%clk 0:00:11.6]} 53... c4 {[%clk 0:00:09]} 54. Kxg5 {[%clk
0:00:12]} 54... c3 {[%clk 0:00:09.5]} 55. h4 {[%clk 0:00:11.5]} 55... Rg2+
{[%clk 0:00:09.9]} 56. Kf4 {[%clk 0:00:11.7]} 56... Rg1 {[%clk 0:00:09.7]} 57.
h5 {[%clk 0:00:12]} 57... c2 {[%clk 0:00:09.2]} 58. Rb5+ {[%clk 0:00:10.3]}
58... Kc6 {[%clk 0:00:08.6]} 59. Rxb2 {[%clk 0:00:11.2]} 59... c1=Q+ {[%clk
0:00:08.7]} 60. Kf5 {[%clk 0:00:10.2]} 60... Qxb2 {[%clk 0:00:08.2]} 61. h6
{[%clk 0:00:11.1]} 61... Rf1+ {[%clk 0:00:07.8]} 62. Kg6 {[%clk 0:00:12]} 62...
Qg2+ {[%clk 0:00:07.7]} 63. Kh7 {[%clk 0:00:12.9]} 63... Kd6 {[%clk 0:00:07.1]}
64. Kh8 {[%clk 0:00:13.8]} 64... Qg6 {[%clk 0:00:06.4]} 65. h7 {[%clk
0:00:14.7]} 65... Rf8# {[%clk 0:00:06.9]} 0-1

[Event "*** SCC Grand Prix: Titled Tuesday Blitz"]
[Site "Chess.com"]
[Date "2020.07.14"]
[Round "9"]
[White "Munkhzul_Turmunkh"]
[Black "Evgeny81"]
[Result "1-0"]
[WhiteElo "2572"]
[BlackElo "2731"]
[TimeControl "180+1"]
[EndTime "11:48:41 PDT"]
[Termination "Munkhzul_Turmunkh won by checkmate"]

1. e4 {[%clk 0:03:00.9]} 1... e5 {[%clk 0:02:59.1]} 2. Nf3 {[%clk 0:02:57.4]}
2... Nc6 {[%clk 0:02:59.7]} 3. Bb5 {[%clk 0:02:55.2]} 3... a6 {[%clk 0:02:59.3]}
4. Ba4 {[%clk 0:02:54.4]} 4... Nf6 {[%clk 0:02:59.7]} 5. O-O {[%clk 0:02:53.1]}
5... Be7 {[%clk 0:03:00.3]} 6. Re1 {[%clk 0:02:51.4]} 6... b5 {[%clk 0:03:00.6]}
7. Bb3 {[%clk 0:02:50]} 7... d6 {[%clk 0:03:01.3]} 8. c3 {[%clk 0:02:49.1]} 8...
Na5 {[%clk 0:03:01.9]} 9. Bc2 {[%clk 0:02:47.7]} 9... c5 {[%clk 0:03:02.2]} 10.
h3 {[%clk 0:02:35]} 10... Qc7 {[%clk 0:03:02.4]} 11. d4 {[%clk 0:02:30.6]} 11...
Bd7 {[%clk 0:03:01.4]} 12. d5 {[%clk 0:02:27.4]} 12... O-O {[%clk 0:02:59.6]}
13. Nbd2 {[%clk 0:02:20.8]} 13... Rfb8 {[%clk 0:02:58.5]} 14. b3 {[%clk
0:02:15.1]} 14... c4 {[%clk 0:02:58.3]} 15. Bb2 {[%clk 0:02:07.8]} 15... Qc8
{[%clk 0:02:32.5]} 16. b4 {[%clk 0:01:51]} 16... Nb7 {[%clk 0:02:31.8]} 17. Nf1
{[%clk 0:01:45.7]} 17... Bd8 {[%clk 0:02:30.7]} 18. Ng3 {[%clk 0:01:41.9]} 18...
Bb6 {[%clk 0:02:28.6]} 19. Bc1 {[%clk 0:01:36]} 19... Ne8 {[%clk 0:02:25.7]} 20.
Nh4 {[%clk 0:01:30.6]} 20... g6 {[%clk 0:02:24.6]} 21. Nhf5 {[%clk 0:01:15.6]}
21... gxf5 {[%clk 0:02:20.9]} 22. exf5 {[%clk 0:01:14.6]} 22... f6 {[%clk
0:02:04.9]} 23. Qg4+ {[%clk 0:01:10.3]} 23... Kh8 {[%clk 0:02:03.2]} 24. Bh6
{[%clk 0:00:58.5]} 24... Qc7 {[%clk 0:01:41.4]} 25. Qh5 {[%clk 0:00:58]} 25...
Nd8 {[%clk 0:01:33.3]} 26. Re4 {[%clk 0:00:49.1]} 26... Ng7 {[%clk 0:01:26.5]}
27. Bxg7+ {[%clk 0:00:47.6]} 27... Kxg7 {[%clk 0:01:26.5]} 28. Rh4 {[%clk
0:00:39.1]} 28... Nf7 {[%clk 0:01:24.6]} 29. Qxh7+ {[%clk 0:00:36.7]} 29... Kf8
{[%clk 0:01:24.9]} 30. Qg6 {[%clk 0:00:29.7]} 30... Ke7 {[%clk 0:01:20.5]} 31.
Rh7 {[%clk 0:00:28.8]} 31... Rf8 {[%clk 0:01:15.1]} 32. Ne4 {[%clk 0:00:28]}
32... Be8 {[%clk 0:00:58.1]} 33. Qxf6+ {[%clk 0:00:26.1]} 33... Kd7 {[%clk
0:00:58.2]} 34. Qg7 {[%clk 0:00:18.4]} 34... Kc8 {[%clk 0:00:55.7]} 35. Qxf8
{[%clk 0:00:17.4]} 35... Kb7 {[%clk 0:00:56.3]} 36. Qg7 {[%clk 0:00:15.2]} 36...
Rd8 {[%clk 0:00:50.4]} 37. Qf6 {[%clk 0:00:14.9]} 37... Kb8 {[%clk 0:00:43.5]}
38. a4 {[%clk 0:00:14.8]} 38... a5 {[%clk 0:00:37.2]} 39. bxa5 {[%clk 0:00:13]}
39... Bxa5 {[%clk 0:00:35.9]} 40. axb5 {[%clk 0:00:13.4]} 40... Bb6 {[%clk
0:00:35.9]} 41. Ra6 {[%clk 0:00:12.2]} 41... Rd7 {[%clk 0:00:29.6]} 42. Qe6
{[%clk 0:00:11.3]} 42... Rd8 {[%clk 0:00:25.5]} 43. Nf6 {[%clk 0:00:10.9]} 43...
Qc5 {[%clk 0:00:20.1]} 44. Rxb6+ {[%clk 0:00:10.2]} 44... Qxb6 {[%clk
0:00:20.6]} 45. Nxe8 {[%clk 0:00:10.3]} 45... Ng5 {[%clk 0:00:21.2]} 46. Qe7
{[%clk 0:00:06.4]} 46... Nxh7 {[%clk 0:00:21.2]} 47. Qxh7 {[%clk 0:00:06.7]}
47... Rxe8 {[%clk 0:00:18.4]} 48. f6 {[%clk 0:00:07.1]} 48... Qd8 {[%clk
0:00:13.8]} 49. f7 {[%clk 0:00:07]} 49... Rf8 {[%clk 0:00:12.5]} 50. Bg6 {[%clk
0:00:07]} 50... Qf6 {[%clk 0:00:11.2]} 51. Qg8 {[%clk 0:00:07.2]} 51... Qe7
{[%clk 0:00:10.4]} 52. Qg7 {[%clk 0:00:07.4]} 52... e4 {[%clk 0:00:10.4]} 53.
Kh2 {[%clk 0:00:06.2]} 53... Rd8 {[%clk 0:00:04.8]} 54. Qd4 {[%clk 0:00:04.9]}
54... Kb7 {[%clk 0:00:04.1]} 55. g3 {[%clk 0:00:03.3]} 55... Rf8 {[%clk
0:00:03.6]} 56. h4 {[%clk 0:00:03.4]} 56... Rd8 {[%clk 0:00:02.9]} 57. h5 {[%clk
0:00:03.1]} 57... Rf8 {[%clk 0:00:03]} 58. Kg2 {[%clk 0:00:03.4]} 58... Qg5
{[%clk 0:00:03.5]} 59. Qxe4 {[%clk 0:00:03.1]} 59... Qf6 {[%clk 0:00:03.1]} 60.
Qe3 {[%clk 0:00:03.1]} 60... Qg7 {[%clk 0:00:02.5]} 61. b6 {[%clk 0:00:03.5]}
61... Qf6 {[%clk 0:00:02.4]} 62. Qe4 {[%clk 0:00:03.7]} 62... Rd8 {[%clk
0:00:02.8]} 63. Qe3 {[%clk 0:00:03.7]} 63... Qg7 {[%clk 0:00:02.4]} 64. Qe7+
{[%clk 0:00:03.2]} 64... Kxb6 {[%clk 0:00:02.4]} 65. Qxd8+ {[%clk 0:00:03.5]}
65... Kc5 {[%clk 0:00:03.3]} 66. f8=Q {[%clk 0:00:04.2]} 66... Qxc3 {[%clk
0:00:02.7]} 67. Qfxd6+ {[%clk 0:00:04.2]} 67... Kd4 {[%clk 0:00:02.8]} 68. Q8f6#
{[%clk 0:00:04.5]} 1-0

[Event "*** SCC Grand Prix: Titled Tuesday Blitz"]
[Site "Chess.com"]
[Date "2020.07.14"]
[Round "9"]
[White "FabianoCaruana"]
[Black "AnishOnYoutube"]
[Result "1-0"]
[WhiteElo "3036"]
[BlackElo "2876"]
[TimeControl "180+1"]
[EndTime "11:48:42 PDT"]
[Termination "FabianoCaruana won on time"]

1. d4 {[%clk 0:03:00.9]} 1... Nf6 {[%clk 0:02:59.8]} 2. c4 {[%clk 0:03:01]} 2...
e6 {[%clk 0:03:00.3]} 3. Nf3 {[%clk 0:03:01.4]} 3... d5 {[%clk 0:03:00.4]} 4. g3
{[%clk 0:03:00.8]} 4... Bb4+ {[%clk 0:02:58.8]} 5. Bd2 {[%clk 0:03:00.2]} 5...
Be7 {[%clk 0:02:59.1]} 6. Bg2 {[%clk 0:03:00.8]} 6... O-O {[%clk 0:02:58.8]} 7.
O-O {[%clk 0:03:01.1]} 7... Nbd7 {[%clk 0:02:57.8]} 8. Qc2 {[%clk 0:03:01.2]}
8... c6 {[%clk 0:02:58]} 9. Rd1 {[%clk 0:03:01.4]} 9... b6 {[%clk 0:02:56.4]}
10. Bf4 {[%clk 0:03:01.5]} 10... Bb7 {[%clk 0:02:53.6]} 11. Nc3 {[%clk 0:02:57]}
11... dxc4 {[%clk 0:02:53.6]} 12. Ne5 {[%clk 0:02:56.7]} 12... Nxe5 {[%clk
0:02:31.2]} 13. dxe5 {[%clk 0:02:56.6]} 13... Nd5 {[%clk 0:02:31.6]} 14. Ne4
{[%clk 0:02:38.8]} 14... b5 {[%clk 0:02:31.3]} 15. b3 {[%clk 0:02:33.6]} 15...
cxb3 {[%clk 0:02:20.7]} 16. axb3 {[%clk 0:02:34.5]} 16... h6 {[%clk 0:02:13]}
17. Bd2 {[%clk 0:02:30]} 17... Qc7 {[%clk 0:01:56.9]} 18. Nd6 {[%clk 0:02:11.5]}
18... Bxd6 {[%clk 0:01:17.8]} 19. Ba5 {[%clk 0:02:09.5]} 19... Qd7 {[%clk
0:00:55.3]} 20. exd6 {[%clk 0:02:09.3]} 20... e5 {[%clk 0:00:40.5]} 21. Qc5
{[%clk 0:02:02.6]} 21... Rfe8 {[%clk 0:00:39.6]} 22. e4 {[%clk 0:01:56.4]} 22...
Nf6 {[%clk 0:00:39.7]} 23. Bc3 {[%clk 0:01:54.9]} 23... Qe6 {[%clk 0:00:40.1]}
24. b4 {[%clk 0:01:31]} 24... Nd7 {[%clk 0:00:39.5]} 25. Qe3 {[%clk 0:01:31.4]}
25... a6 {[%clk 0:00:37.6]} 26. h4 {[%clk 0:01:20.2]} 26... Nf6 {[%clk
0:00:27.6]} 27. Qb6 {[%clk 0:01:17.2]} 27... Rab8 {[%clk 0:00:21.6]} 28. Qc5
{[%clk 0:01:05.7]} 28... Nd7 {[%clk 0:00:20.5]} 29. Qe3 {[%clk 0:01:05.6]} 29...
Nf6 {[%clk 0:00:19.9]} 30. Rd2 {[%clk 0:01:02]} 30... Red8 {[%clk 0:00:18.5]}
31. Rad1 {[%clk 0:01:02]} 31... Bc8 {[%clk 0:00:19]} 32. Qc5 {[%clk 0:00:58.6]}
32... Re8 {[%clk 0:00:17.5]} 33. Bb2 {[%clk 0:00:51.9]} 33... Bd7 {[%clk
0:00:17.1]} 34. Ra1 {[%clk 0:00:49.2]} 34... Ra8 {[%clk 0:00:16.8]} 35. Bc3
{[%clk 0:00:45.1]} 35... Qc4 {[%clk 0:00:15.9]} 36. Qxc4 {[%clk 0:00:44.7]}
36... bxc4 {[%clk 0:00:16.8]} 37. Ra5 {[%clk 0:00:44.3]} 37... Be6 {[%clk
0:00:13.6]} 38. Rxe5 {[%clk 0:00:40.7]} 38... Reb8 {[%clk 0:00:11.6]} 39. Ra5
{[%clk 0:00:36.3]} 39... Rb5 {[%clk 0:00:09.6]} 40. Rda2 {[%clk 0:00:30.5]}
40... Rxa5 {[%clk 0:00:09.1]} 41. Rxa5 {[%clk 0:00:31.4]} 41... Nd7 {[%clk
0:00:09.3]} 42. e5 {[%clk 0:00:30.8]} 42... Bd5 {[%clk 0:00:08.8]} 43. Bxd5
{[%clk 0:00:31]} 43... cxd5 {[%clk 0:00:09.7]} 44. Rxd5 {[%clk 0:00:31.5]} 44...
Rc8 {[%clk 0:00:09.2]} 45. Ra5 {[%clk 0:00:30]} 45... Rc6 {[%clk 0:00:07.6]} 46.
f4 {[%clk 0:00:30.1]} 46... g6 {[%clk 0:00:07.2]} 47. Kf2 {[%clk 0:00:30.1]}
47... h5 {[%clk 0:00:06.8]} 48. Ke3 {[%clk 0:00:30.4]} 48... Kf8 {[%clk
0:00:07.4]} 49. Kd4 {[%clk 0:00:29.5]} 49... Ke8 {[%clk 0:00:07.6]} 50. Kd5
{[%clk 0:00:27.9]} 50... Rb6 {[%clk 0:00:06.2]} 51. Kxc4 {[%clk 0:00:27.6]}
51... Rc6+ {[%clk 0:00:06.5]} 52. Kd3 {[%clk 0:00:26.8]} 52... Nf8 {[%clk
0:00:06.9]} 53. Bd4 {[%clk 0:00:25.9]} 53... Ne6 {[%clk 0:00:06.9]} 54. Bc5
{[%clk 0:00:26]} 54... Kd7 {[%clk 0:00:06.8]} 55. Kc4 {[%clk 0:00:26.5]} 55...
Kc8 {[%clk 0:00:06.2]} 56. Kd5 {[%clk 0:00:25.8]} 56... Kb7 {[%clk 0:00:06.7]}
57. Ra1 {[%clk 0:00:23.1]} 57... Rc8 {[%clk 0:00:06.3]} 58. Rf1 {[%clk
0:00:19.2]} 58... Rd8 {[%clk 0:00:06.6]} 59. f5 {[%clk 0:00:19.1]} 59... gxf5
{[%clk 0:00:07]} 60. Rxf5 {[%clk 0:00:20]} 60... Rd7 {[%clk 0:00:06.5]} 61. Be3
{[%clk 0:00:16.2]} 61... Nc7+ {[%clk 0:00:06.2]} 62. Ke4 {[%clk 0:00:16.6]}
62... Ne6 {[%clk 0:00:04.7]} 63. Rxh5 {[%clk 0:00:16.4]} 63... Kc6 {[%clk
0:00:05.4]} 64. Rf5 {[%clk 0:00:16.2]} 64... Kb5 {[%clk 0:00:05.1]} 65. Bd2
{[%clk 0:00:14.7]} 65... Kc4 {[%clk 0:00:02.6]} 66. h5 {[%clk 0:00:14.5]} 66...
a5 {[%clk 0:00:02.9]} 67. bxa5 {[%clk 0:00:14.5]} 67... Nc5+ {[%clk 0:00:03.6]}
68. Kf3 {[%clk 0:00:15]} 68... Rb7 {[%clk 0:00:03.8]} 69. h6 {[%clk 0:00:13.2]}
69... Rb3+ {[%clk 0:00:04.3]} 70. Kg4 {[%clk 0:00:12.9]} 70... Ne4 {[%clk
0:00:04.6]} 71. Rf4 {[%clk 0:00:11.6]} 71... Kd5 {[%clk 0:00:04]} 72. Rxe4
{[%clk 0:00:11.6]} 72... Kxe4 {[%clk 0:00:04.5]} 73. h7 {[%clk 0:00:09.5]} 73...
Rb8 {[%clk 0:00:04.9]} 74. Bg5 {[%clk 0:00:10]} 74... Rh8 {[%clk 0:00:04.9]} 75.
d7 {[%clk 0:00:09.8]} 1-0

[Event "*** SCC Grand Prix: Titled Tuesday Blitz"]
[Site "Chess.com"]
[Date "2020.07.14"]
[Round "9"]
[White "jannat65"]
[Black "DonBroca"]
[Result "1-0"]
[WhiteElo "1825"]
[BlackElo "2092"]
[TimeControl "180+1"]
[EndTime "11:48:44 PDT"]
[Termination "jannat65 won on time"]

1. e4 {[%clk 0:03:00.9]} 1... c5 {[%clk 0:02:35.3]} 2. Nf3 {[%clk 0:03:00.4]}
2... d6 {[%clk 0:02:33.4]} 3. d4 {[%clk 0:03:00.5]} 3... cxd4 {[%clk 0:02:34.3]}
4. Nxd4 {[%clk 0:03:00.8]} 4... Nf6 {[%clk 0:02:34.8]} 5. Nc3 {[%clk 0:03:00.8]}
5... g6 {[%clk 0:02:33.4]} 6. Be3 {[%clk 0:03:00.6]} 6... Bg7 {[%clk 0:02:33.9]}
7. f3 {[%clk 0:03:00.3]} 7... O-O {[%clk 0:02:34.4]} 8. Qd2 {[%clk 0:02:56]}
8... Nc6 {[%clk 0:02:34.9]} 9. Bc4 {[%clk 0:02:54.2]} 9... Bd7 {[%clk
0:02:34.7]} 10. O-O-O {[%clk 0:02:52.7]} 10... Rc8 {[%clk 0:02:34.6]} 11. Bb3
{[%clk 0:02:50.6]} 11... Ne5 {[%clk 0:02:34.4]} 12. h3 {[%clk 0:02:43.9]} 12...
a6 {[%clk 0:02:33.9]} 13. f4 {[%clk 0:02:42.3]} 13... Nc4 {[%clk 0:02:27.9]} 14.
Bxc4 {[%clk 0:02:42.4]} 14... Rxc4 {[%clk 0:02:28.8]} 15. g4 {[%clk 0:02:23.6]}
15... Rxc3 {[%clk 0:02:27.7]} 16. Qxc3 {[%clk 0:02:23.2]} 16... Nxe4 {[%clk
0:02:27.9]} 17. Qb3 {[%clk 0:02:17.5]} 17... b5 {[%clk 0:02:14.7]} 18. Rhe1
{[%clk 0:02:11.8]} 18... Nc5 {[%clk 0:02:11.9]} 19. Qa3 {[%clk 0:02:06.2]} 19...
Qc7 {[%clk 0:01:31.4]} 20. Nb3 {[%clk 0:01:30.9]} 20... Nb7 {[%clk 0:01:06.9]}
21. Qb4 {[%clk 0:01:22.3]} 21... Rc8 {[%clk 0:01:00]} 22. Re2 {[%clk 0:01:17.5]}
22... a5 {[%clk 0:00:58.4]} 23. Qe4 {[%clk 0:01:14.2]} 23... Be6 {[%clk
0:00:54.4]} 24. Bd4 {[%clk 0:01:07.4]} 24... a4 {[%clk 0:00:46.6]} 25. Na1
{[%clk 0:00:51.2]} 25... Bc4 {[%clk 0:00:38.5]} 26. Red2 {[%clk 0:00:49]} 26...
Nc5 {[%clk 0:00:33.1]} 27. Qe3 {[%clk 0:00:45.6]} 27... Bxd4 {[%clk 0:00:22]}
28. Qxd4 {[%clk 0:00:45.3]} 28... Bxa2 {[%clk 0:00:22.3]} 29. Re1 {[%clk
0:00:40.4]} 29... Bb3 {[%clk 0:00:19.9]} 30. Kb1 {[%clk 0:00:35.9]} 30... Be6
{[%clk 0:00:15.1]} 31. f5 {[%clk 0:00:32]} 31... gxf5 {[%clk 0:00:09.8]} 32.
gxf5 {[%clk 0:00:32.1]} 32... Bxf5 {[%clk 0:00:10.4]} 33. Rg1+ {[%clk
0:00:31.9]} 33... Bg6 {[%clk 0:00:10.7]} 34. h4 {[%clk 0:00:31.7]} 34... Nb3
{[%clk 0:00:07.3]} 35. Nxb3 {[%clk 0:00:26]} 35... axb3 {[%clk 0:00:06.9]} 36.
Rxg6+ {[%clk 0:00:17.7]} 36... hxg6 {[%clk 0:00:05]} 37. c3 {[%clk 0:00:17.3]}
37... Qc4 {[%clk 0:00:04.6]} 38. Qxc4 {[%clk 0:00:16.8]} 38... bxc4 {[%clk
0:00:05.5]} 39. Re2 {[%clk 0:00:16.3]} 39... Rc7 {[%clk 0:00:05.3]} 40. Re4
{[%clk 0:00:15.9]} 40... d5 {[%clk 0:00:04.4]} 41. Re5 {[%clk 0:00:15]} 41... e6
{[%clk 0:00:05]} 42. Kc1 {[%clk 0:00:13.2]} 42... Kg7 {[%clk 0:00:05.4]} 43. Kd2
{[%clk 0:00:13.4]} 43... f6 {[%clk 0:00:05.8]} 44. Rxe6 {[%clk 0:00:13.5]} 44...
Kf7 {[%clk 0:00:05.8]} 45. Rd6 {[%clk 0:00:13.6]} 45... Rc5 {[%clk 0:00:06.2]}
46. Ke3 {[%clk 0:00:12.4]} 46... Ke7 {[%clk 0:00:06.6]} 47. Ra6 {[%clk 0:00:11]}
47... Rb5 {[%clk 0:00:05.6]} 48. Kd4 {[%clk 0:00:08.5]} 48... f5 {[%clk
0:00:05.7]} 49. Ra7+ {[%clk 0:00:07.8]} 49... Kf6 {[%clk 0:00:05.7]} 50. Ra6+
{[%clk 0:00:05.2]} 50... Kg7 {[%clk 0:00:05.9]} 51. Rd6 {[%clk 0:00:05.1]} 51...
Ra5 {[%clk 0:00:05]} 52. Rxd5 {[%clk 0:00:05.2]} 52... Ra2 {[%clk 0:00:05.3]}
53. Rd7+ {[%clk 0:00:05.1]} 53... Kh6 {[%clk 0:00:03.8]} 54. Kxc4 {[%clk
0:00:05.6]} 54... Rxb2 {[%clk 0:00:03.8]} 55. Rb7 {[%clk 0:00:05.5]} 55... Rh2
{[%clk 0:00:03.1]} 56. Rxb3 {[%clk 0:00:05.4]} 56... Rxh4+ {[%clk 0:00:03.8]}
57. Kd5 {[%clk 0:00:06.1]} 57... g5 {[%clk 0:00:04]} 58. Ke5 {[%clk 0:00:06.3]}
58... Rf4 {[%clk 0:00:03.2]} 59. Rb6+ {[%clk 0:00:05.7]} 59... Kh5 {[%clk
0:00:03.7]} 60. Rb8 {[%clk 0:00:05.2]} 60... Kg4 {[%clk 0:00:03.8]} 61. Rb1
{[%clk 0:00:02.5]} 61... Rc4 {[%clk 0:00:03.7]} 62. Rb3 {[%clk 0:00:02.3]} 62...
f4 {[%clk 0:00:03]} 63. Kd5 {[%clk 0:00:03.2]} 63... Ra4 {[%clk 0:00:02.3]} 64.
c4 {[%clk 0:00:03]} 64... f3 {[%clk 0:00:02.4]} 65. c5 {[%clk 0:00:02.6]} 65...
f2 {[%clk 0:00:02]} 66. Rb1 {[%clk 0:00:03]} 66... Rf4 {[%clk 0:00:02.1]} 67.
Rf1 {[%clk 0:00:01.8]} 67... Kg3 {[%clk 0:00:02.7]} 68. c6 {[%clk 0:00:02.3]}
68... Kg2 {[%clk 0:00:02.9]} 69. c7 {[%clk 0:00:02.6]} 1-0